bitfinex-derivatives/quotes_ETHF0:USTF0_20240925
["timestamp","ask_amount","ask_price","bid_price","bid_amount"]
[1727255150219,0.3672,2628.8,2628.7,0.4029]
[1727255150720,0.3672,2628.8,2628.7,1.5029]
[1727255151419,0.77957,2628.9,2628.7,1.5029]
[1727255152011,0.3992,2628.9,2628.7,1.88329]
[1727255152620,0.77957,2628.9,2628.7,1.88329]
[1727255152826,0.77957,2628.9,2628.8,2.86298006]
[1727255153016,0.77957,2628.9,2628.8,1.24928006]
[1727255154123,0.38038,2628.8,2628.7,3.50206225]
[1727255154821,1.44038,2628.8,2628.7,3.50206225]
[1727255157927,1.44038,2628.8,2628.7,1.5029]
[1727255161030,1.44038,2628.8,2628.7,1.4939]
[1727255163341,1.06,2628.8,2628.7,1.4939]
[1727255172039,1.44038,2628.8,2628.7,1.4939]
[1727255172240,1.06,2628.8,2628.7,1.4939]
[1727255172535,1.44038,2628.8,2628.5,0.38041]
[1727255172735,0.748,2628.7,2628.5,1.87001]
[1727255174344,1.12839,2628.7,2628.5,1.87001]
[1727255174531,0.748,2628.7,2628.5,1.87001]
[1727255175237,1.12839,2628.7,2628.5,1.87001]
[1727255176034,1.12839,2628.7,2628.6,2.35125001]
[1727255176243,1.12839,2628.7,2628.6,0.99316856]
[1727255176444,1.12839,2628.7,2628.6,2.35118729]
[1727255177145,1.12839,2628.7,2628.6,2.3511649]
[1727255177443,0.75349,2628.7,2628.6,2.3511649]
[1727255177630,0.75349,2628.7,2628.6,2.35110057]
[1727255178031,1.44038,2628.8,2628.6,3.83151057]
[1727255178244,1.44038,2628.8,2628.7,0.99316856]
[1727255179746,1.44038,2628.8,2628.7,2.35102718]
[1727255180137,1.06,2628.8,2628.7,1.37355856]
[1727255180337,1.06,2628.8,2628.7,2.73142296]
[1727255180640,1.06,2628.8,2628.7,1.7382544]
[1727255181547,1.06,2628.8,2628.7,9.54315058]
[1727255181738,0.48909823,2628.8,2628.7,15.20892784]
[1727255182147,0.48909823,2628.8,2628.7,13.20976559]
[1727255183039,0.48909823,2628.8,2628.7,9.13627618]
[1727255184049,0.48909823,2628.8,2628.7,8.18528618]
[1727255187550,0.79339823,2628.8,2628.7,8.18528618]
[1727255188848,0.18649823,2628.8,2628.7,16.08726618]
[1727255189052,0.18649823,2628.8,2628.7,16.56297606]
[1727255189353,0.18649823,2628.8,2628.7,17.55560886]
[1727255190151,0.18649823,2628.8,2628.7,16.56297606]
[1727255190544,1.04329823,2628.8,2628.7,16.56297606]
[1727255190742,1.34759823,2628.8,2628.7,16.56297606]
[1727255191142,1.34759823,2628.8,2628.7,22.64121025]
[1727255191447,1.34759823,2628.8,2628.7,19.05022736]
[1727255191640,1.34759823,2628.8,2628.7,23.11646555]
[1727255192248,1.34759823,2628.8,2628.7,22.64075934]
[1727255193151,0.46907823,2628.8,2628.7,20.15350437]
[1727255193459,0.355,2629.2,2629.1,0.38033]
[1727255193658,0.0376832,2629.3,2629.2,0.38032]
[1727255193852,0.0376832,2629.3,2629.2,0.76272]
[1727255195042,0.3418832,2629.3,2629.2,0.76272]
[1727255195241,0.6460832,2629.3,2629.2,8.78653053]
[1727255195755,0.6460832,2629.3,2629.2,22.23854596]
[1727255195955,0.355,2629.7,2629.6,0.38026]
[1727255196145,0.3744,2629.9,2629.7,0.38025]
[1727255196350,0.38024,2629.8,2629.7,0.99062147]
[1727255196644,3.2078,2629.8,2629.4,1.97862147]
[1727255196857,0.3821,2629.7,2629.4,1.97862147]
[1727255197050,0.3659,2629.6,2629.4,1.97862147]
[1727255197358,0.7403,2629.6,2629.4,1.36828]
[1727255197554,0.6084,2629.5,2629.4,2.35890147]
[1727255197952,0.9126,2629.5,2629.4,2.35890147]
[1727255198155,0.9126,2629.5,2629.4,0.38028]
[1727255198459,0.9126,2629.5,2629.4,1.48028]
[1727255223268,0.9126,2629.5,2629.4,5.45280195]
[1727255223472,0.9126,2629.5,2629.4,6.40353195]
[1727255223669,0.9126,2629.5,2629.4,6.81322342]
[1727255226276,0.9126,2629.5,2629.4,8.17134825]
[1727255226772,0.9126,2629.5,2629.4,8.17135329]
[1727255227274,0.9126,2629.5,2629.4,7.18073182]
[1727255228268,0.9126,2629.5,2629.4,8.66492738]
[1727255228479,0.9126,2629.5,2629.4,7.18073182]
[1727255228691,0.9126,2629.5,2629.4,7.18157123]
[1727255228881,0.9126,2629.5,2629.4,8.66576679]
[1727255231489,0.9126,2629.5,2629.4,12.46896679]
[1727255232191,0.9126,2629.5,2629.4,10.98477123]
[1727255233393,0.9126,2629.5,2629.4,10.98538529]
[1727255234394,0.9126,2629.5,2629.4,12.96776017]
[1727255235387,0.9126,2629.5,2629.4,9.62580195]
[1727255240582,1.29288,2629.5,2629.4,5.44232195]
[1727255240786,1.29288,2629.5,2629.4,5.07252195]
[1727255240988,1.29288,2629.5,2629.4,5.45281195]
[1727255241389,1.68808,2629.5,2629.4,5.45281195]
[1727255242096,1.3078,2629.5,2629.4,5.45281195]
[1727255242592,0.9126,2629.5,2629.4,5.45281195]
[1727255243298,0.34187018,2629.5,2629.4,9.53275292]
[1727255243695,0.34187018,2629.5,2629.4,11.51750401]
[1727255243895,0.34187018,2629.5,2629.4,11.51754256]
[1727255244592,0.72215018,2629.5,2629.4,11.51754256]
[1727255244993,0.34187018,2629.5,2629.4,11.51754256]
[1727255245196,0.37537018,2629.5,2629.4,8.79758191]
[1727255247397,0.75565018,2629.5,2629.4,8.79758191]
[1727255247696,0.37537018,2629.5,2629.4,8.79758191]
[1727255248300,0.37537018,2629.5,2629.4,11.51201722]
[1727255248496,0.37537018,2629.5,2629.4,8.79758191]
[1727255249196,0.37537018,2629.5,2629.4,11.51209057]
[1727255249497,0.75565018,2629.5,2629.4,11.51209057]
[1727255251797,0.75565018,2629.5,2629.4,11.51015365]
[1727255253006,0.75565018,2629.5,2629.4,11.13070061]
[1727255253204,0.75565018,2629.5,2629.4,8.41510793]
[1727255253502,0.75565018,2629.5,2629.4,6.43031829]
[1727255254396,0.75565018,2629.5,2629.4,6.81060829]
[1727255254800,0.75565018,2629.5,2629.4,6.43031829]
[1727255255506,0.75565018,2629.5,2629.4,7.9203051]
[1727255257801,0.75565018,2629.5,2629.4,7.92144604]
[1727255258502,0.75565018,2629.5,2629.4,1.1]
[1727255261206,1.13995018,2629.5,2629.4,1.1]
[1727255265513,1.13995018,2629.5,2629.4,2.45902821]
[1727255265701,0.37537018,2629.5,2629.4,5.19890785]
[1727255266302,0.37537018,2629.5,2629.4,7.916668]
[1727255267112,0.37537018,2629.5,2629.4,5.93187836]
[1727255267311,0.37537018,2629.5,2629.4,7.91920868]
[1727255267511,0.37537018,2629.5,2629.4,7.91915149]
[1727255268114,0.37537018,2629.5,2629.4,7.91909794]
[1727255268618,0.37537018,2629.5,2629.4,12.19738978]
[1727255269310,0.37537018,2629.5,2629.4,10.21011301]
[1727255269911,0.37537018,2629.5,2629.4,12.69736798]
[1727255271911,0.37537018,2629.5,2629.4,13.17298464]
[1727255272106,3.2078,2629.9,2629.4,15.43965967]
[1727255272307,3.58803,2629.9,2629.8,1.48023]
[1727255272509,3.2078,2629.9,2629.8,2.83820703]
[1727255272710,3.2078,2629.9,2629.8,4.01580703]
[1727255273006,3.58802,2629.9,2629.8,4.01580703]
[1727255273619,3.58802,2629.9,2629.8,2.65783]
[1727255273912,0.38022,2629.9,2629.8,2.65783]
[1727255274114,0.84612,2629.9,2629.8,2.65783]
[1727255274708,0.84612,2629.9,2629.8,2.2776]
[1727255278717,0.4659,2629.9,2629.8,2.2776]
[1727255279020,0.84612,2629.9,2629.8,2.2776]
[1727255279620,0.4659,2629.9,2629.8,2.2776]
[1727255279829,0.84612,2629.9,2629.8,2.2776]
[1727255280522,0.84612,2629.9,2629.8,4.62684318]
[1727255280829,0.4659,2629.9,2629.8,5.00707318]
[1727255281016,0.4659,2629.9,2629.8,5.0066735]
[1727255281217,0.4659,2629.9,2629.8,4.01377248]
[1727255281411,0.4659,2629.9,2629.8,5.00661667]
[1727255281618,0.4659,2629.9,2629.8,4.62638667]
[1727255282215,0.84612,2629.9,2629.8,4.62638667]
[1727255283228,0.4659,2629.9,2629.8,4.62638667]
[1727255285335,0.4659,2629.9,2629.8,3.27044419]
[1727255285527,0.4659,2629.9,2629.8,4.6261114]
[1727255286930,0.4659,2629.9,2629.8,3.27044419]
[1727255287535,0.84612,2629.9,2629.8,3.83619745]
[1727255287734,0.8527,2629.9,2629.8,0.99284419]
[1727255287931,1.63462,2629.9,2629.8,2.34838198]
[1727255288628,1.63462,2629.9,2629.7,1.48024]
[1727255289034,1.63462,2629.9,2629.8,4.30343966]
[1727255291839,1.2544,2629.9,2629.8,4.30343966]
[1727255295641,1.2544,2629.9,2629.8,5.29628385]
[1727255298244,1.2544,2629.9,2629.8,7.03097879]
[1727255298538,0.8527,2629.9,2629.8,7.03096433]
[1727255298740,0.8527,2629.9,2629.8,7.40056433]
[1727255300149,0.8527,2629.9,2629.8,7.40049556]
[1727255300947,0.8527,2629.9,2629.8,7.78329556]
[1727255303745,0.8527,2629.9,2629.8,5.43606966]
[1727255304447,0.4659,2629.9,2629.8,5.43606966]
[1727255305335,0.4659,2629.9,2629.8,28.41197651]
[1727255305535,1.0953,2630.5,2630.3,0.38015]
[1727255305739,0.7403,2630.5,2630.4,1.1]
[1727255306145,0.7403,2630.5,2630.4,1.48015]
[1727255306340,0.7403,2630.5,2630.4,1.1]
[1727255306341,1.12043,2630.5,2630.4,1.1]
[1727255306542,1.12043,2630.5,2630.4,1.48015]
[1727255306543,0.7403,2630.5,2630.4,1.48015]
[1727255306738,1.12043,2630.5,2630.4,1.1]
[1727255306944,0.7403,2630.5,2630.4,1.1]
[1727255307151,1.0444,2630.5,2630.4,1.1]
[1727255307342,1.42453,2630.5,2630.4,1.1]
[1727255307541,1.0444,2630.5,2630.4,1.1]
[1727255308045,1.0444,2630.5,2630.4,1.48015]
[1727255309442,1.42453,2630.5,2630.4,1.48015]
[1727255310044,0.3041,2630.5,2630.4,1.48015]
[1727255326155,0.3041,2630.5,2630.4,5.61848549]
[1727255331063,0.68423,2630.5,2630.4,5.23833549]
[1727255331269,0.68423,2630.5,2630.1,3.58799]
[1727255331270,6.92514,2630.5,2630.1,3.58799]
[1727255331457,0.38018,2630.2,2630.1,1.48019]
[1727255331657,0.38017,2630.3,2630.1,1.48019]
[1727255331869,0.38018,2630.2,2630.1,1.1]
[1727255332061,0.74768,2630.2,2630.1,1.1]
[1727255333267,1.05178,2630.2,2630.1,1.1]
[1727255335764,0.6716,2630.2,2630.1,1.1]
[1727255335965,0.6716,2630.2,2630.1,1.48019]
[1727255336774,1.05178,2630.2,2630.1,1.1]
[1727255338571,0.6716,2630.2,2630.1,1.1]
[1727255338771,1.05178,2630.2,2630.1,1.1]
[1727255339576,0.6716,2630.2,2630.1,1.1]
[1727255339877,0.6716,2630.2,2630.1,1.48019]
[1727255341069,0.1009733,2630.2,2630.1,3.82537292]
[1727255341473,0.1009733,2630.2,2630.1,2.83252873]
[1727255341869,0.1009733,2630.2,2630.1,3.82322677]
[1727255342270,0.1009733,2630.2,2630.1,2.83252873]
[1727255342964,0.1009733,2630.2,2630.1,4.3203874]
[1727255343187,0.1009733,2630.2,2630.1,4.32038216]
[1727255345574,0.1009733,2630.2,2630.1,2.83047732]
[1727255345768,0.1009733,2630.2,2630.1,4.31731208]
[1727255346369,0.1009733,2630.2,2630.1,2.83047732]
[1727255347676,0.1009733,2630.2,2630.1,1.48019]
[1727255347868,0.1009733,2630.2,2630.1,2.83148804]
[1727255348063,0.1009733,2630.2,2630.1,1.48019]
[1727255353777,0.1009733,2630.2,2630.1,1.1]
[1727255353969,0.4888733,2630.2,2630.0,0.7604]
[1727255354174,0.3763,2630.1,2630.0,0.7604]
[1727255355079,0.7633,2630.1,2630.0,0.3802]
[1727255355581,1.1435,2630.1,2629.9,2.23771]
[1727255355780,0.3041,2630.0,2629.9,2.23771]
[1727255356079,0.3041,2630.0,2629.9,5.2001702]
[1727255356474,0.3041,2630.0,2629.9,3.2135221]
[1727255357489,0.3041,2630.0,2629.9,3.21343306]
[1727255358076,0.3041,2630.0,2629.9,5.20008116]
[1727255358387,0.3041,2630.0,2629.9,3.21343306]
[1727255358585,0.3041,2630.0,2629.9,5.20008116]
[1727255358787,0.3041,2630.0,2629.9,3.21343306]
[1727255359789,0.3041,2630.0,2629.9,4.70198112]
[1727255360586,0.3041,2630.0,2629.9,5.20008116]
[1727255362383,0.3041,2630.0,2629.9,5.19989612]
[1727255362984,0.3041,2630.0,2629.9,7.90401748]
[1727255363786,0.3041,2630.0,2629.9,11.11181748]
[1727255363986,0.3041,2630.0,2629.9,5.06891]
[1727255366790,0.6843,2630.0,2629.9,3.5887]
[1727255366990,0.6843,2630.0,2629.9,3.2078]
[1727255367680,1.4313,2630.0,2629.9,3.2078]
[1727255370083,5.2337,2630.0,2629.9,3.2078]
[1727255371598,0.38022,2629.9,2629.8,0.99214826]
[1727255371887,3.8024,2629.9,2629.7,2.09214826]
[1727255372092,0.38023,2629.8,2629.7,2.09214826]
[1727255372288,4.18263,2629.8,2629.7,2.09214826]
[1727255375594,4.18263,2629.8,2629.7,3.44567657]
[1727255375793,0.38023,2629.8,2629.7,3.44567657]
[1727255376192,4.18263,2629.8,2629.7,2.09214826]
[1727255376401,4.18263,2629.8,2629.7,3.44576962]
[1727255376795,4.18263,2629.8,2629.7,2.09214826]
[1727255377401,4.18263,2629.8,2629.7,1.1]
[1727255377700,0.38025,2629.7,2629.6,0.99214826]
[1727255377894,1.12375,2629.7,2629.6,0.99214826]
[1727255378597,0.38026,2629.6,2629.5,2.48284826]
[1727255378794,0.38026,2629.6,2629.5,3.83637558]
[1727255379200,0.7435,2629.7,2629.5,1.87097]
[1727255379201,1.12376,2629.7,2629.5,1.87097]
[1727255379503,0.7435,2629.7,2629.5,1.87097]
[1727255379697,1.12376,2629.7,2629.5,1.87097]
[1727255380799,1.12376,2629.7,2629.5,1.48027]
[1727255381101,0.3843,2629.6,2629.5,1.48027]
[1727255381706,0.76456,2629.6,2629.5,1.1]
[1727255382003,0.76456,2629.6,2629.2,0.75261]
[1727255382004,0.3803,2629.4,2629.2,0.75261]
[1727255382303,0.3946,2629.3,2629.2,1.85261]
[1727255382504,0.6988,2629.3,2629.2,1.85261]
[1727255385401,0.6988,2629.3,2629.2,1.4723]
[1727255385596,2.17911,2629.3,2629.2,0.3723]
[1727255385796,1.07911,2629.3,2629.2,0.3723]
[1727255386203,4.88231,2629.3,2629.2,0.3723]
[1727255387513,0.6988,2629.3,2629.2,1.4723]
[1727255390007,0.6988,2629.3,2629.2,1.85262]
[1727255390403,0.6988,2629.3,2629.2,1.4723]
[1727255395918,0.6988,2629.3,2629.2,1.85262]
[1727255396112,0.6988,2629.3,2629.2,1.4723]
[1727255396417,0.6988,2629.3,2629.2,0.3723]
[1727255397506,4.88231,2629.3,2629.2,0.3723]
[1727255397711,4.88231,2629.3,2629.0,0.3727]
[1727255397712,5.26331,2629.3,2629.0,0.3727]
[1727255398016,0.4019,2629.2,2629.0,0.75304]
[1727255399917,0.4019,2629.2,2629.0,1.85304]
[1727255400515,0.4019,2629.2,2629.1,0.3643]
[1727255401520,0.4019,2629.2,2628.9,2.09214826]
[1727255401521,4.2051,2629.2,2628.9,1.37250826]
[1727255401819,0.4019,2629.2,2629.0,0.38035]
[1727255406027,0.4019,2629.2,2628.8,11.00140204]
[1727255406223,0.4019,2629.2,2629.1,0.38033]
[1727255406525,0.6988,2629.3,2629.2,0.38032]
[1727255406717,0.3042,2629.3,2629.2,1.14962]
[1727255407028,0.3042,2629.3,2629.2,1.53112]
[1727255415829,0.3042,2629.3,2629.2,2.52326826]
[1727255416429,0.3042,2629.3,2629.2,1.53112]
[1727255423524,0.355,2629.8,2629.7,0.38025]
[1727255423829,3.576,2629.9,2629.8,0.38023]
[1727255424023,0.3682,2629.9,2629.8,0.76273]
[1727255424229,0.3682,2629.9,2629.8,1.75783627]
[1727255424433,0.3682,2629.9,2629.8,3.11367974]
[1727255424828,0.3682,2629.9,2629.8,2.73328967]
[1727255425130,0.6723,2629.9,2629.8,3.11327771]
[1727255425335,0.6723,2629.9,2629.8,1.73833246]
[1727255425641,0.6723,2629.9,2629.8,3.11332697]
[1727255426134,0.6723,2629.9,2629.8,1.75749451]
[1727255426831,0.6723,2629.9,2629.8,2.73264936]
[1727255427033,0.6723,2629.9,2629.8,2.73266628]
[1727255427230,0.6723,2629.9,2629.8,1.37726451]
[1727255427433,0.6723,2629.9,2629.8,1.75749451]
[1727255428036,0.3041,2629.9,2629.8,4.7105731]
[1727255428238,0.3041,2629.9,2629.8,4.70923745]
[1727255428538,1e-05,2629.9,2629.8,18.02900293]
[1727255428831,1e-05,2629.9,2629.8,16.44913736]
[1727255429035,1e-05,2629.9,2629.8,20.51191442]
[1727255429337,1e-05,2629.9,2629.8,18.02752204]
[1727255430437,1e-05,2629.9,2629.8,13.01415498]
[1727255430630,1e-05,2629.9,2629.8,20.4113927]
[1727255430932,1e-05,2629.9,2629.8,18.42586356]
[1727255431137,1e-05,2629.9,2629.8,20.41126077]
[1727255431530,1e-05,2629.9,2629.8,14.36708028]
[1727255431733,1e-05,2629.9,2629.8,13.26708028]
[1727255431929,1e-05,2629.9,2629.8,9.46468028]
[1727255432536,1e-05,2629.9,2629.8,13.26708028]
[1727255434431,1e-05,2629.9,2629.8,11.91415498]
[1727255436033,1e-05,2629.9,2629.8,8.11175498]
[1727255437041,1e-05,2629.9,2629.8,4.90395498]
[1727255437340,1e-05,2629.9,2629.8,3.97053]
[1727255438642,1e-05,2629.9,2629.8,5.32052811]
[1727255438842,1e-05,2629.9,2629.8,6.31117661]
[1727255439036,1e-05,2629.9,2629.8,4.9611785]
[1727255439734,1e-05,2629.9,2629.8,1.7533785]
[1727255440039,1e-05,2629.9,2629.8,4.9611785]
[1727255440849,1e-05,2629.9,2629.8,13.76322029]
[1727255441144,1e-05,2629.9,2629.8,16.56140912]
[1727255441443,1e-05,2629.9,2629.8,15.07290208]
[1727255441643,1e-05,2629.9,2629.8,16.55835805]
[1727255441950,1e-05,2629.9,2629.8,15.07290208]
[1727255442441,0.7428,2630.4,2630.3,1.33057]
[1727255442442,0.355,2630.4,2630.3,1.33057]
[1727255442633,0.7612,2630.8,2630.7,0.3801]
[1727255442832,0.7612,2630.8,2630.6,0.38011]
[1727255443035,0.7612,2630.8,2630.5,1.1]
[1727255443345,0.7612,2630.8,2630.6,0.38012]
[1727255443847,0.7612,2630.8,2630.6,0.38011]
[1727255444238,0.3041,2630.7,2630.6,0.38011]
[1727255448543,0.3041,2630.7,2630.6,0.38012]
[1727255448749,0.3041,2630.7,2630.5,0.38012]
[1727255448948,1.1,2630.6,2630.5,0.38012]
[1727255449252,1.1,2630.6,2630.4,0.3602]
[1727255449253,1.1,2630.6,2630.4,0.38014]
[1727255449551,0.3917,2630.5,2630.4,0.38014]
[1727255449762,0.7682,2630.5,2630.4,0.38014]
[1727255451545,0.7682,2630.5,2630.2,1.1]
[1727255451752,0.3765,2630.5,2630.4,0.38015]
[1727255454539,11.2781,2630.5,2629.9,0.98967795]
[1727255454741,0.3978,2630.4,2630.3,0.38016]
[1727255455141,4.1994,2630.4,2630.3,0.38016]
[1727255455342,4.57955,2630.4,2630.2,0.38017]
[1727255455544,0.388,2630.3,2630.2,0.38017]
[1727255455949,5.66977,2630.3,2630.0,0.3802]
[1727255456150,5.66977,2630.3,2630.2,0.38018]
[1727255456151,0.388,2630.3,2630.2,0.38018]
[1727255456645,0.388,2630.3,2630.2,1.51148]
[1727255462551,13.3974,2630.3,2629.8,0.98967795]
[1727255462745,1.1,2629.9,2629.7,0.38024]
[1727255462947,0.7717,2629.8,2629.6,0.75156]
[1727255463149,0.7717,2629.8,2629.7,0.38025]
[1727255463745,0.3988,2629.8,2629.7,0.38025]
[1727255464356,0.3988,2629.8,2629.7,1.48025]
[1727255464959,0.3988,2629.8,2629.7,0.38025]
[1727255468147,0.3988,2629.8,2629.7,1.36992795]
[1727255468559,0.74749,2630.1,2629.9,0.38022]
[1727255468859,0.3641,2630.0,2629.9,0.38022]
[1727255470554,8.62212,2630.6,2629.9,1.1]
[1727255470872,0.38015,2630.4,2630.2,1.1]
[1727255471557,0.38016,2630.3,2630.2,1.1]
[1727255471758,1.1112,2630.5,2630.0,0.7665]
[1727255472059,1.85878,2630.2,2630.0,0.7755]
[1727255472247,0.7326,2630.1,2630.0,0.7755]
[1727255474854,1.0367,2630.1,2630.0,0.7755]
[1727255475855,0.3041,2630.1,2630.0,0.7755]
[1727255484863,0.3041,2630.1,2630.0,0.3953]
[1727255485064,1.0756,2630.1,2630.0,0.7755]
[1727255485564,5.978,2630.1,2629.8,0.38023]
[1727255485764,0.38023,2629.9,2629.7,0.38024]
[1727255486268,0.76343,2629.8,2629.7,0.38024]
[1727255486663,0.3832,2629.8,2629.7,0.38024]
[1727255488762,0.3832,2629.8,2629.7,0.38025]
[1727255488763,0.76344,2629.8,2629.7,0.38025]
[1727255489062,0.76344,2629.8,2629.6,0.75595]
[1727255491366,3.2078,2629.7,2629.5,2.25587]
[1727255491569,3.2078,2629.7,2629.5,0.38026]
[1727255491570,4.36896,2629.7,2629.5,0.38026]
[1727255491765,0.38026,2629.6,2629.5,0.38026]
[1727255492273,0.38026,2629.6,2629.5,0.38027]
[1727255492464,0.38026,2629.6,2629.5,1.36994795]
[1727255493875,0.38026,2629.6,2629.5,0.38027]
[1727255494767,0.68446,2629.6,2629.5,0.38027]
[1727255495076,0.68446,2629.6,2629.4,1.36887795]
[1727255495077,0.38028,2629.5,2629.4,1.36996795]
[1727255495266,0.74768,2629.5,2629.4,1.36996795]
[1727255495569,0.3674,2629.5,2629.4,1.36996795]
[1727255495773,0.3674,2629.5,2629.3,0.98967795]
[1727255495969,0.74768,2629.5,2629.4,0.38029]
[1727255496183,0.74768,2629.5,2629.3,2.46996795]
[1727255498676,0.38029,2629.4,2629.3,2.46996795]
[1727255499064,0.3674,2629.5,2629.4,0.38029]
[1727255499280,0.3042,2629.6,2629.5,1.33098]
[1727255499575,0.3042,2629.6,2629.5,8.15266611]
[1727255499874,0.76781,2630.0,2629.9,0.38022]
[1727255500071,0.76781,2630.0,2629.9,1.48022]
[1727255500267,0.7678,2630.0,2629.9,1.48022]
[1727255500973,0.7678,2630.0,2629.9,1.85322]
[1727255501473,0.7678,2630.0,2629.9,2.46654823]
[1727255501680,1.035,2630.0,2629.9,1.473]
[1727255502180,1.035,2630.0,2629.9,1.85322]
[1727255503279,1.035,2630.0,2629.9,1.473]
[1727255503782,1.035,2630.0,2629.9,1.85322]
[1727255504077,1.035,2630.0,2629.9,2.84676823]
[1727255504476,0.6548,2630.0,2629.9,2.84676823]
[1727255505176,0.6548,2630.0,2629.9,3.62556823]
[1727255505780,1.035,2630.0,2629.9,3.62556823]
[1727255506473,1.035,2630.0,2629.9,2.63202]
[1727255508173,1.035,2630.0,2629.9,2.2518]
[1727255512985,1.035,2630.0,2629.9,1.1518]
[1727255514083,1.035,2630.0,2629.9,1.53202]
[1727255514394,1.035,2630.0,2629.9,2.52556823]
[1727255514591,1.035,2630.0,2629.9,2.14534823]
[1727255516086,0.6548,2630.0,2629.9,2.52556823]
[1727255516489,1.035,2630.0,2629.9,2.52556823]
[1727255516690,1.035,2630.0,2629.9,2.14534823]
[1727255520580,1.035,2630.0,2629.9,2.52556823]
[1727255521597,1.035,2630.0,2629.9,1.53202]
[1727255522897,0.6548,2630.0,2629.9,1.53202]
[1727255523091,1.035,2630.0,2629.9,1.53202]
[1727255523284,0.6548,2630.0,2629.9,1.53202]
[1727255523795,1.035,2630.0,2629.9,1.53202]
[1727255525890,0.6548,2630.0,2629.9,1.53202]
[1727255526490,1.035,2630.0,2629.9,1.53202]
[1727255526992,0.6548,2630.0,2629.9,1.53202]
[1727255527387,0.6548,2630.0,2629.9,2.63202]
[1727255528494,0.6548,2630.0,2629.9,3.98641991]
[1727255528687,0.6548,2630.0,2629.9,3.98639909]
[1727255531696,0.6548,2630.0,2629.9,5.47672143]
[1727255532206,0.6548,2630.0,2629.9,3.98639909]
[1727255532799,0.2672,2630.0,2629.9,3.98639909]
[1727255533204,0.2672,2630.0,2629.9,6.42727143]
[1727255533402,0.2672,2630.0,2629.9,9.63507143]
[1727255533589,0.2672,2630.0,2629.9,11.80353429]
[1727255533794,0.2672,2630.0,2629.9,13.79063075]
[1727255533998,0.2672,2630.0,2629.9,11.80353429]
[1727255535003,0.2672,2630.0,2629.9,13.7926274]
[1727255536504,0.2672,2630.0,2629.9,7.74092]
[1727255539298,0.2672,2630.0,2629.9,11.54332]
[1727255539495,0.2672,2630.0,2629.9,15.78348335]
[1727255542096,0.2672,2630.0,2629.9,21.78348335]
[1727255542601,0.2672,2630.0,2629.9,15.78348335]
[1727255543204,0.355,2630.4,2630.3,2.28098]
[1727255543517,3.99925322,2630.9,2630.7,0.3801]
[1727255543518,0.3752,2630.8,2630.7,0.3801]
[1727255543806,0.3752,2630.8,2630.7,2.83261486]
[1727255544002,0.3752,2630.8,2630.7,3.82597826]
[1727255544206,0.3752,2630.8,2630.7,2.84920016]
[1727255545103,0.3752,2630.8,2630.7,4.20182047]
[1727255545303,0.3752,2630.8,2630.7,2.84920016]
[1727255547009,0.3752,2630.8,2630.7,1.856]
[1727255548207,0.75529,2630.8,2630.6,3.26191016]
[1727255548408,0.3801,2630.7,2630.5,1.74793016]
[1727255548613,0.3752,2630.8,2630.5,0.99320016]
[1727255548614,0.793,2630.6,2630.5,0.99320016]
[1727255548809,1.17312,2630.6,2630.4,2.09320016]
[1727255549105,0.3755,2630.5,2630.4,1.48015]
[1727255550113,0.3755,2630.5,2630.4,2.47335016]
[1727255551104,0.3755,2630.5,2630.4,1.48015]
[1727255566725,0.3755,2630.5,2630.4,2.47335016]
[1727255569425,0.95024,2630.8,2630.4,2.47335016]
[1727255569426,0.3801,2630.8,2630.6,0.38011]
[1727255569724,0.3848,2630.7,2630.5,1.1]
[1727255569921,0.3848,2630.7,2630.6,0.38012]
[1727255570121,0.3848,2630.7,2630.6,1.14502]
[1727255570122,0.7649,2630.7,2630.6,1.14502]
[1727255571931,0.3848,2630.7,2630.6,1.14502]
[1727255574534,0.3733,2630.8,2630.7,0.3801]
[1727255578034,0.3733,2630.8,2630.7,1.4801]
[1727255579522,0.75339,2630.8,2630.7,1.4801]
[1727255579825,0.3733,2630.8,2630.7,1.4801]
[1727255580229,0.75339,2630.8,2630.7,1.4801]
[1727255580532,0.75339,2630.8,2630.7,1.4742]
[1727255581735,0.3733,2630.8,2630.7,1.4742]
[1727255582731,0.75339,2630.8,2630.7,1.4742]
[1727255585430,0.3733,2630.8,2630.7,1.4742]
[1727255586137,0.75339,2630.8,2630.7,1.4742]
[1727255591239,0.75339,2630.8,2630.7,1.36740016]
[1727255594241,0.3733,2630.8,2630.7,1.36740016]
[1727255594745,4.37458,2630.9,2630.7,1.36740016]
[1727255594944,4.37458,2630.9,2630.7,2.46740016]
[1727255596043,1.16678,2630.9,2630.7,2.46740016]
[1727255596246,4.37458,2630.9,2630.7,2.46740016]
[1727255596747,2.98735991,2630.8,2630.7,1.4742]
[1727255601549,2.98735991,2630.9,2630.8,1.33032]
[1727255601755,4.25105322,2631.1,2630.9,0.38007]
[1727255601756,2.98735991,2631.0,2630.9,0.38007]
[1727255601947,2.98735991,2631.0,2630.9,1.48007]
[1727255602253,2.98735991,2631.0,2630.9,13.18125]
[1727255602449,0.355,2631.4,2630.9,12.19073913]
[1727255602753,0.3722,2631.2,2631.1,0.38004]
[1727255602959,0.3722,2631.2,2631.1,1.48004]
[1727255603149,0.3722,2631.2,2630.7,0.99320016]
[1727255603150,1.32229,2631.2,2630.7,0.99320016]
[1727255603350,0.38006,2631.0,2630.8,1.48008]
[1727255603559,1.32229,2631.2,2630.9,0.38007]
[1727255603560,0.38006,2631.1,2630.9,0.38007]
[1727255603856,1.32229,2631.2,2630.8,1.1]
[1727255603857,0.38007,2630.9,2630.8,1.49015727]
[1727255604057,0.38007,2630.9,2630.8,2.3472365]
[1727255604248,0.74537,2630.9,2630.8,2.3472365]
[1727255605153,0.74537,2630.9,2630.8,2.34726458]
[1727255606048,0.74537,2630.9,2630.8,0.99383051]
[1727255606248,0.74537,2630.9,2630.8,2.34725153]
[1727255606753,0.74537,2630.9,2630.8,0.99383051]